[Event "Titled Tuesday Blitz August 23 Early 2022"]
[White "Hardaway, Brewington"]
[Black "Drygalov, Andrey"]
[WhiteFideId "30941849"]
[BlackFideId "24171735"]
[WhiteElo "1813"]
[BlackElo "2531"]
[Result "1-0"]
[Round "03"]
[TimeControl "180+1"]
[Date "2022.08.23"]
[WhiteClock "0:00:07"]
[BlackClock "0:00:06"]

1. e4 {[%clk 0:03:00]}  c5 {[%clk 0:02:59]} 2. Nf3 {[%clk 0:03:00]}  d6 {[%clk 0:03:00]} 3. d4 {[%clk 0:03:00]}  cxd4 {[%clk 0:03:00]} 4. Nxd4 {[%clk 0:03:01]}  Nf6 {[%clk 0:03:01]} 5. Nc3 {[%clk 0:03:01]}  a6 {[%clk 0:03:02]} 6. Be2 {[%clk 0:03:01]}  e5 {[%clk 0:03:02]} 7. Nb3 {[%clk 0:03:02]}  Be7 {[%clk 0:03:03]} 8. Be3 {[%clk 0:03:00]}  Be6 {[%clk 0:03:03]} 9. f4 {[%clk 0:02:54]}  exf4 {[%clk 0:03:00]} 10. Bxf4 {[%clk 0:02:55]}  Nc6 {[%clk 0:03:01]} 11. Qd2 {[%clk 0:02:54]}  d5 {[%clk 0:02:58]} 12. O-O-O {[%clk 0:02:49]}  dxe4 {[%clk 0:02:45]} 13. Qe3 {[%clk 0:02:35]}  Qc8 {[%clk 0:02:45]} 14. Qg3 {[%clk 0:02:16]}  O-O {[%clk 0:02:31]} 15. Bh6 {[%clk 0:02:16]}  g6 {[%clk 0:02:32]} 16. Bxf8 {[%clk 0:02:15]}  Qxf8 {[%clk 0:02:33]} 17. h4 {[%clk 0:02:10]}  h5 {[%clk 0:02:31]} 18. Kb1 {[%clk 0:02:09]}  Rc8 {[%clk 0:02:29]} 19. Rhf1 {[%clk 0:01:51]}  Nb4 {[%clk 0:02:16]} 20. Nd4 {[%clk 0:01:42]}  Bg4 {[%clk 0:02:12]} 21. a3 {[%clk 0:01:39]}  Nc6 {[%clk 0:01:48]} 22. Bxg4 {[%clk 0:01:37]}  Nxg4 {[%clk 0:01:48]} 23. Nxc6 {[%clk 0:01:35]}  Rxc6 {[%clk 0:01:48]} 24. Nxe4 {[%clk 0:01:32]}  Qc8 {[%clk 0:01:46]} 25. Rd2 {[%clk 0:01:24]}  f5 {[%clk 0:01:44]} 26. Qb3+ {[%clk 0:01:19]}  Kg7 {[%clk 0:01:42]} 27. Nc3 {[%clk 0:01:19]}  Bxh4 {[%clk 0:01:38]} 28. Rfd1 {[%clk 0:01:11]}  Bf6 {[%clk 0:01:17]} 29. Nd5 {[%clk 0:01:05]}  Bg5 {[%clk 0:01:02]} 30. Re2 {[%clk 0:00:59]}  Rd6 {[%clk 0:00:47]} 31. c4 {[%clk 0:00:46]}  b5 {[%clk 0:00:22]} 32. Qc3+ {[%clk 0:00:45]}  Bf6 {[%clk 0:00:22]} 33. Qb4 {[%clk 0:00:24]}  Qd7 {[%clk 0:00:19]} 34. Red2 {[%clk 0:00:20]}  Bg5 {[%clk 0:00:10]} 35. Rd4 {[%clk 0:00:13]}  bxc4 {[%clk 0:00:10]} 36. Qxc4 {[%clk 0:00:08]}  Qc6 {[%clk 0:00:10]} 37. Qxc6 {[%clk 0:00:08]}  Rxc6 {[%clk 0:00:11]} 38. Nb4 {[%clk 0:00:09]}  Re6 {[%clk 0:00:10]} 39. Rd7+ {[%clk 0:00:09]}  Kh6 {[%clk 0:00:11]} 40. R7d6 {[%clk 0:00:09]}  Re2 {[%clk 0:00:11]} 41. Rxa6 {[%clk 0:00:10]}  Bf6 {[%clk 0:00:11]} 42. Nd3 {[%clk 0:00:09]}  Kg5 {[%clk 0:00:09]} 43. a4 {[%clk 0:00:09]}  Rxg2 {[%clk 0:00:07]} 44. Rc6 {[%clk 0:00:09]}  Ne3 {[%clk 0:00:08]} 45. Re1 {[%clk 0:00:08]}  Nd5 {[%clk 0:00:08]} 46. a5 {[%clk 0:00:07]}  Rd2 {[%clk 0:00:08]} 47. a6 {[%clk 0:00:05]}  Bd4 {[%clk 0:00:06]} 48. a7 {[%clk 0:00:02]}  Bxa7 {[%clk 0:00:05]} 49. Ne5 {[%clk 0:00:02]}  Nf4 {[%clk 0:00:05]} 50. Nf3+ {[%clk 0:00:03]}  Kg4 {[%clk 0:00:06]} 51. Nxd2 {[%clk 0:00:03]}  h4 {[%clk 0:00:06]} 52. Ra6 {[%clk 0:00:03]}  Bf2 {[%clk 0:00:06]} 53. Rf1 {[%clk 0:00:03]}  Be3 {[%clk 0:00:07]} 54. Nc4 {[%clk 0:00:03]}  Bd4 {[%clk 0:00:07]} 55. Rd6 {[%clk 0:00:02]}  Bg7 {[%clk 0:00:05]} 56. Rd2 {[%clk 0:00:02]}  h3 {[%clk 0:00:05]} 57. Ne3+ {[%clk 0:00:03]}  Kg3 {[%clk 0:00:06]} 58. Rdf2 {[%clk 0:00:04]}  Be5 {[%clk 0:00:06]} 59. Rf3+ {[%clk 0:00:04]}  Kh4 {[%clk 0:00:06]} 60. Rxf4+ {[%clk 0:00:04]}  Bxf4 {[%clk 0:00:07]} 61. Rxf4+ {[%clk 0:00:05]}  Kg3 {[%clk 0:00:08]} 62. Rf1 {[%clk 0:00:06]}  f4 {[%clk 0:00:08]} 63. Nd5 {[%clk 0:00:04]}  f3 {[%clk 0:00:09]} 64. Ne3 {[%clk 0:00:05]}  Kf4 {[%clk 0:00:08]} 65. Nd1 {[%clk 0:00:05]}  g5 {[%clk 0:00:09]} 66. b4 {[%clk 0:00:05]}  g4 {[%clk 0:00:09]} 67. b5 {[%clk 0:00:05]}  g3 {[%clk 0:00:09]} 68. b6 {[%clk 0:00:05]}  g2 {[%clk 0:00:09]} 69. Re1 {[%clk 0:00:06]}  h2 {[%clk 0:00:09]} 70. b7 {[%clk 0:00:06]}  g1=Q {[%clk 0:00:09]} 71. b8=Q+ {[%clk 0:00:06]}  Kf5 {[%clk 0:00:09]} 72. Qf8+ {[%clk 0:00:05]}  Kg4 {[%clk 0:00:05]} 73. Rxg1+ {[%clk 0:00:06]}  hxg1=Q {[%clk 0:00:06]} 74. Qg8+ {[%clk 0:00:07]}  Kh3 {[%clk 0:00:06]} 75. Qxg1 {[%clk 0:00:07]}  f2 {[%clk 0:00:06]} 76. Nxf2+ {[%clk 0:00:07]} 1-0


[Site "https://www.chess.com"]

[Event "Titled Tuesday Blitz August 23 Early 2022"]
[White "Kadric, Denis"]
[Black "Nakamura, Hikaru"]
[WhiteFideId "14403803"]
[BlackFideId "2016192"]
[WhiteElo "2657"]
[BlackElo "2850"]
[Result "0-1"]
[Round "03"]
[TimeControl "180+1"]
[Date "2022.08.23"]
[WhiteClock "0:00:17"]
[BlackClock "0:00:34"]

1. e4 {[%clk 0:02:58]}  g6 {[%clk 0:02:55]} 2. d4 {[%clk 0:02:52]}  Bg7 {[%clk 0:02:53]} 3. Nc3 {[%clk 0:02:52]}  c6 {[%clk 0:02:53]} 4. f4 {[%clk 0:02:51]}  d5 {[%clk 0:02:54]} 5. e5 {[%clk 0:02:47]}  h5 {[%clk 0:02:54]} 6. Nf3 {[%clk 0:02:47]}  Bg4 {[%clk 0:02:53]} 7. h3 {[%clk 0:02:42]}  Bxf3 {[%clk 0:02:53]} 8. Qxf3 {[%clk 0:02:43]}  e6 {[%clk 0:02:54]} 9. Be3 {[%clk 0:02:42]}  h4 {[%clk 0:02:54]} 10. Bd3 {[%clk 0:02:42]}  Ne7 {[%clk 0:02:54]} 11. O-O {[%clk 0:02:42]}  Nd7 {[%clk 0:02:54]} 12. Ne2 {[%clk 0:02:42]}  Nf5 {[%clk 0:02:54]} 13. Bf2 {[%clk 0:02:41]}  Bf8 {[%clk 0:02:51]} 14. b3 {[%clk 0:02:42]}  a5 {[%clk 0:02:48]} 15. c4 {[%clk 0:02:35]}  Be7 {[%clk 0:02:34]} 16. Rfc1 {[%clk 0:02:30]}  Kf8 {[%clk 0:02:32]} 17. a4 {[%clk 0:02:20]}  Bb4 {[%clk 0:02:31]} 18. Ra2 {[%clk 0:02:17]}  Nb6 {[%clk 0:02:28]} 19. Qg4 {[%clk 0:01:57]}  Kg7 {[%clk 0:02:27]} 20. Kh2 {[%clk 0:01:57]}  Qd7 {[%clk 0:02:20]} 21. c5 {[%clk 0:01:47]}  Nc8 {[%clk 0:02:19]} 22. Bxf5 {[%clk 0:01:44]}  exf5 {[%clk 0:02:18]} 23. Qg5 {[%clk 0:01:44]}  Qe7 {[%clk 0:01:51]} 24. Qxe7 {[%clk 0:01:43]}  Nxe7 {[%clk 0:01:52]} 25. Ng1 {[%clk 0:01:43]}  Rh5 {[%clk 0:01:43]} 26. Nf3 {[%clk 0:01:42]}  Rah8 {[%clk 0:01:44]} 27. Be1 {[%clk 0:01:29]}  Nc8 {[%clk 0:01:06]} 28. Bxb4 {[%clk 0:01:15]}  axb4 {[%clk 0:01:06]} 29. a5 {[%clk 0:01:09]}  Na7 {[%clk 0:01:06]} 30. a6 {[%clk 0:01:09]}  Rb8 {[%clk 0:01:05]} 31. axb7 {[%clk 0:01:09]}  Rxb7 {[%clk 0:01:06]} 32. Ra6 {[%clk 0:01:09]}  Nb5 {[%clk 0:01:07]} 33. Rxc6 {[%clk 0:01:06]}  Rh8 {[%clk 0:01:03]} 34. Rb6 {[%clk 0:00:57]}  Rhb8 {[%clk 0:01:00]} 35. Rxb7 {[%clk 0:00:55]}  Rxb7 {[%clk 0:01:01]} 36. c6 {[%clk 0:00:53]}  Rc7 {[%clk 0:01:01]} 37. Rc5 {[%clk 0:00:53]}  Nc3 {[%clk 0:00:59]} 38. Nxh4 {[%clk 0:00:50]}  Ne2 {[%clk 0:00:53]} 39. Nf3 {[%clk 0:00:39]}  Nxf4 {[%clk 0:00:52]} 40. Kg3 {[%clk 0:00:26]}  Ne6 {[%clk 0:00:50]} 41. Rxd5 {[%clk 0:00:27]}  Rxc6 {[%clk 0:00:51]} 42. Rb5 {[%clk 0:00:27]}  Rc3 {[%clk 0:00:50]} 43. Rxb4 {[%clk 0:00:23]}  g5 {[%clk 0:00:42]} 44. d5 {[%clk 0:00:20]}  Nf4 {[%clk 0:00:43]} 45. d6 {[%clk 0:00:17]}  Rd3 {[%clk 0:00:42]} 46. Rd4 {[%clk 0:00:17]}  Ne2+ {[%clk 0:00:42]} 47. Kf2 {[%clk 0:00:17]}  Nxd4 {[%clk 0:00:36]} 48. Ne1 {[%clk 0:00:17]}  Rd1 {[%clk 0:00:34]} 0-1


[Site "https://www.chess.com"]

[Event "Titled Tuesday Blitz August 23 Early 2022"]
[White "Karolczuk, Iwo"]
[Black "Malicka, Maria"]
[WhiteFideId "21816972"]
[BlackFideId "1197576"]
[WhiteElo "2270"]
[BlackElo "1931"]
[Result "1-0"]
[Round "03"]
[TimeControl "180+1"]
[Date "2022.08.23"]
[WhiteClock "0:02:42"]
[BlackClock "0:02:31"]

1. e4 {[%clk 0:03:00]}  c5 {[%clk 0:03:00]} 2. Nc3 {[%clk 0:02:59]}  d6 {[%clk 0:02:59]} 3. d4 {[%clk 0:02:59]}  cxd4 {[%clk 0:02:56]} 4. Qxd4 {[%clk 0:02:59]}  Nf6 {[%clk 0:02:55]} 5. b3 {[%clk 0:02:54]}  Nc6 {[%clk 0:02:55]} 6. Qd2 {[%clk 0:02:53]}  g6 {[%clk 0:02:54]} 7. Bb2 {[%clk 0:02:52]}  Bg7 {[%clk 0:02:54]} 8. O-O-O {[%clk 0:02:52]}  a6 {[%clk 0:02:51]} 9. f3 {[%clk 0:02:50]}  Qc7 {[%clk 0:02:50]} 10. g4 {[%clk 0:02:48]}  b5 {[%clk 0:02:50]} 11. Kb1 {[%clk 0:02:46]}  h5 {[%clk 0:02:46]} 12. Nd5 {[%clk 0:02:44]}  Nxd5 {[%clk 0:02:31]} 13. Bxg7 {[%clk 0:02:43]}  Rg8 {[%clk 0:02:31]} 14. exd5 {[%clk 0:02:43]}  Rxg7 {[%clk 0:02:30]} 15. dxc6 {[%clk 0:02:43]}  hxg4 {[%clk 0:02:30]} 16. fxg4 {[%clk 0:02:43]}  Qxc6 {[%clk 0:02:31]} 17. Bg2 {[%clk 0:02:42]} 1-0


[Site "https://www.chess.com"]

[Event "Titled Tuesday Blitz August 23 Early 2022"]
[White "Maksimovic, Bojan"]
[Black "Subelj, Jan"]
[WhiteFideId "14408120"]
[BlackFideId "14618583"]
[WhiteElo "2447"]
[BlackElo "2331"]
[Result "0-1"]
[Round "03"]
[TimeControl "180+1"]
[Date "2022.08.23"]
[WhiteClock "0:00:01"]
[BlackClock "0:00:13"]

1. e4 {[%clk 0:03:00]}  c5 {[%clk 0:02:59]} 2. Nf3 {[%clk 0:03:00]}  Nc6 {[%clk 0:02:59]} 3. Nc3 {[%clk 0:02:58]}  Nf6 {[%clk 0:02:57]} 4. Bb5 {[%clk 0:02:55]}  Nd4 {[%clk 0:02:54]} 5. e5 {[%clk 0:02:25]}  Nxb5 {[%clk 0:02:54]} 6. Nxb5 {[%clk 0:02:26]}  Nd5 {[%clk 0:02:54]} 7. Ng5 {[%clk 0:02:25]}  f6 {[%clk 0:02:29]} 8. exf6 {[%clk 0:02:14]}  Nxf6 {[%clk 0:02:17]} 9. Qe2 {[%clk 0:01:47]}  e6 {[%clk 0:02:11]} 10. d4 {[%clk 0:01:41]}  a6 {[%clk 0:02:09]} 11. Na3 {[%clk 0:01:09]}  cxd4 {[%clk 0:02:07]} 12. Nc4 {[%clk 0:01:10]}  Be7 {[%clk 0:02:01]} 13. O-O {[%clk 0:01:03]}  O-O {[%clk 0:02:01]} 14. Nf3 {[%clk 0:01:01]}  b5 {[%clk 0:01:56]} 15. Nce5 {[%clk 0:01:01]}  Qb6 {[%clk 0:01:54]} 16. c3 {[%clk 0:00:37]}  d6 {[%clk 0:01:50]} 17. Nd3 {[%clk 0:00:37]}  dxc3 {[%clk 0:01:48]} 18. Be3 {[%clk 0:00:36]}  Qb7 {[%clk 0:01:43]} 19. bxc3 {[%clk 0:00:35]}  e5 {[%clk 0:01:43]} 20. Nd2 {[%clk 0:00:30]}  Bf5 {[%clk 0:01:28]} 21. c4 {[%clk 0:00:24]}  Rfc8 {[%clk 0:01:24]} 22. Rfc1 {[%clk 0:00:21]}  Rc7 {[%clk 0:01:07]} 23. cxb5 {[%clk 0:00:21]}  Rxc1+ {[%clk 0:01:05]} 24. Rxc1 {[%clk 0:00:21]}  Qxb5 {[%clk 0:01:03]} 25. Nc4 {[%clk 0:00:21]}  Rc8 {[%clk 0:01:00]} 26. Ndb2 {[%clk 0:00:02]}  Be6 {[%clk 0:00:54]} 27. a4 {[%clk 0:00:03]}  Qb3 {[%clk 0:00:47]} 28. Na5 {[%clk 0:00:02]}  Rxc1+ {[%clk 0:00:46]} 29. Bxc1 {[%clk 0:00:03]}  Qc3 {[%clk 0:00:45]} 30. Qd2 {[%clk 0:00:02]}  Qxd2 {[%clk 0:00:41]} 31. Bxd2 {[%clk 0:00:03]}  d5 {[%clk 0:00:40]} 32. f3 {[%clk 0:00:03]}  Bd7 {[%clk 0:00:39]} 33. Kf1 {[%clk 0:00:02]}  Kf7 {[%clk 0:00:37]} 34. Nb3 {[%clk 0:00:02]}  Ke6 {[%clk 0:00:36]} 35. Ke2 {[%clk 0:00:03]}  Bc6 {[%clk 0:00:27]} 36. Nd3 {[%clk 0:00:03]}  Nd7 {[%clk 0:00:27]} 37. a5 {[%clk 0:00:02]}  Bb5 {[%clk 0:00:28]} 38. Ke3 {[%clk 0:00:03]}  d4+ {[%clk 0:00:27]} 39. Ke2 {[%clk 0:00:03]}  Nb8 {[%clk 0:00:26]} 40. Be1 {[%clk 0:00:02]}  Nc6 {[%clk 0:00:27]} 41. Kd2 {[%clk 0:00:03]}  Bc4 {[%clk 0:00:19]} 42. Kc2 {[%clk 0:00:02]}  Kd5 {[%clk 0:00:16]} 43. Nb2 {[%clk 0:00:02]}  Bb5 {[%clk 0:00:15]} 44. Nd3 {[%clk 0:00:02]}  Bxd3+ {[%clk 0:00:14]} 45. Kxd3 {[%clk 0:00:03]}  Bb4 {[%clk 0:00:15]} 46. Bh4 {[%clk 0:00:02]}  Nxa5 {[%clk 0:00:15]} 47. Nc1 {[%clk 0:00:02]}  Nc6 {[%clk 0:00:13]} 48. Ne2 {[%clk 0:00:01]}  Bd6 {[%clk 0:00:13]} 49. Ng3 {[%clk 0:00:01]}  Nb4+ {[%clk 0:00:13]} 50. Kd2 {[%clk 0:00:02]}  Ke6 {[%clk 0:00:12]} 51. Ne4 {[%clk 0:00:02]}  h6 {[%clk 0:00:13]} 52. Bd8 {[%clk 0:00:02]}  Nd5 {[%clk 0:00:13]} 53. Kd3 {[%clk 0:00:01]}  Bc7 {[%clk 0:00:13]} 0-1


[Site "https://www.chess.com"]

[Event "Titled Tuesday Blitz August 23 Early 2022"]
[White "Mekhitarian, Krikor Sevag"]
[Black "Vlachos, Anatole"]
[WhiteFideId "2107660"]
[BlackFideId "26093189"]
[WhiteElo "2603"]
[BlackElo "2343"]
[Result "1-0"]
[Round "03"]
[TimeControl "180+1"]
[Date "2022.08.23"]
[WhiteClock "0:00:52"]
[BlackClock "0:00:19"]

1. e4 {[%clk 0:03:00]}  g6 {[%clk 0:02:55]} 2. d4 {[%clk 0:03:00]}  Bg7 {[%clk 0:02:56]} 3. Nc3 {[%clk 0:03:00]}  d6 {[%clk 0:02:56]} 4. h4 {[%clk 0:03:00]}  h5 {[%clk 0:02:54]} 5. f3 {[%clk 0:03:00]}  a6 {[%clk 0:02:54]} 6. Be3 {[%clk 0:03:01]}  b5 {[%clk 0:02:54]} 7. Qd2 {[%clk 0:03:01]}  Bb7 {[%clk 0:02:55]} 8. Nh3 {[%clk 0:03:02]}  Nd7 {[%clk 0:02:55]} 9. Ng5 {[%clk 0:03:03]}  e6 {[%clk 0:02:39]} 10. O-O-O {[%clk 0:02:58]}  Ngf6 {[%clk 0:02:33]} 11. Kb1 {[%clk 0:02:58]}  Qe7 {[%clk 0:02:31]} 12. a3 {[%clk 0:02:58]}  c5 {[%clk 0:02:25]} 13. dxc5 {[%clk 0:02:22]}  dxc5 {[%clk 0:02:25]} 14. Be2 {[%clk 0:02:04]}  Rc8 {[%clk 0:02:06]} 15. Qd6 {[%clk 0:02:03]}  Qxd6 {[%clk 0:02:02]} 16. Rxd6 {[%clk 0:02:04]}  Ke7 {[%clk 0:02:00]} 17. Rhd1 {[%clk 0:02:03]}  Rhd8 {[%clk 0:01:49]} 18. a4 {[%clk 0:01:56]}  b4 {[%clk 0:01:45]} 19. Na2 {[%clk 0:01:56]}  Rc6 {[%clk 0:01:32]} 20. Rxc6 {[%clk 0:01:30]}  Bxc6 {[%clk 0:01:33]} 21. a5 {[%clk 0:01:31]}  Bb5 {[%clk 0:01:32]} 22. Nc1 {[%clk 0:01:29]}  Ne8 {[%clk 0:01:22]} 23. Bxb5 {[%clk 0:01:23]}  axb5 {[%clk 0:01:22]} 24. Nb3 {[%clk 0:01:23]}  c4 {[%clk 0:01:06]} 25. Nc5 {[%clk 0:01:21]}  Ne5 {[%clk 0:00:43]} 26. Rxd8 {[%clk 0:01:13]}  Kxd8 {[%clk 0:00:43]} 27. Ncxe6+ {[%clk 0:00:57]}  fxe6 {[%clk 0:00:40]} 28. Nxe6+ {[%clk 0:00:58]}  Kc8 {[%clk 0:00:19]} 29. Nxg7 {[%clk 0:00:59]}  Nxg7 {[%clk 0:00:19]} 30. Bd4 {[%clk 0:00:56]}  Nxf3 {[%clk 0:00:20]} 31. gxf3 {[%clk 0:00:56]}  Ne6 {[%clk 0:00:20]} 32. Be3 {[%clk 0:00:55]}  g5 {[%clk 0:00:18]} 33. hxg5 {[%clk 0:00:52]}  h4 {[%clk 0:00:19]} 34. g6 {[%clk 0:00:53]}  h3 {[%clk 0:00:19]} 35. Bg1 {[%clk 0:00:52]} 1-0


[Site "https://www.chess.com"]

[Event "Titled Tuesday Blitz August 23 Early 2022"]
[White "Mindlin, Alon"]
[Black "Lenderman, Aleksandr"]
[WhiteFideId "2800071"]
[BlackFideId "2021285"]
[WhiteElo "2417"]
[BlackElo "2607"]
[Result "0-1"]
[Round "03"]
[TimeControl "180+1"]
[Date "2022.08.23"]
[WhiteClock "0:00:51"]
[BlackClock "0:01:22"]

1. d4 {[%clk 0:03:00]}  e6 {[%clk 0:03:00]} 2. c4 {[%clk 0:02:57]}  b6 {[%clk 0:03:01]} 3. Nc3 {[%clk 0:02:57]}  Bb7 {[%clk 0:03:01]} 4. Nf3 {[%clk 0:02:57]}  Bb4 {[%clk 0:03:01]} 5. g3 {[%clk 0:02:54]}  Bxc3+ {[%clk 0:02:59]} 6. bxc3 {[%clk 0:02:53]}  Nf6 {[%clk 0:02:59]} 7. Bg2 {[%clk 0:02:52]}  O-O {[%clk 0:03:00]} 8. O-O {[%clk 0:02:51]}  d6 {[%clk 0:03:00]} 9. a4 {[%clk 0:02:49]}  Nc6 {[%clk 0:02:57]} 10. Qc2 {[%clk 0:02:40]}  Na5 {[%clk 0:02:56]} 11. Nd2 {[%clk 0:02:37]}  Bxg2 {[%clk 0:02:53]} 12. Kxg2 {[%clk 0:02:38]}  c5 {[%clk 0:02:39]} 13. e4 {[%clk 0:02:35]}  cxd4 {[%clk 0:02:34]} 14. cxd4 {[%clk 0:02:35]}  Rc8 {[%clk 0:02:34]} 15. Ba3 {[%clk 0:02:28]}  Re8 {[%clk 0:02:23]} 16. Qd3 {[%clk 0:02:19]}  Qc7 {[%clk 0:02:21]} 17. Rfc1 {[%clk 0:02:14]}  e5 {[%clk 0:02:21]} 18. d5 {[%clk 0:02:11]}  Nd7 {[%clk 0:02:20]} 19. Bb4 {[%clk 0:02:10]}  Nc5 {[%clk 0:02:20]} 20. Qe3 {[%clk 0:02:04]}  Nab7 {[%clk 0:02:14]} 21. Nb3 {[%clk 0:02:00]}  Nxb3 {[%clk 0:02:14]} 22. Qxb3 {[%clk 0:01:59]}  Qd7 {[%clk 0:02:12]} 23. h3 {[%clk 0:01:48]}  Rc7 {[%clk 0:02:10]} 24. a5 {[%clk 0:01:48]}  bxa5 {[%clk 0:02:05]} 25. Bxa5 {[%clk 0:01:48]}  Nc5 {[%clk 0:02:04]} 26. Qc2 {[%clk 0:01:25]}  Rb7 {[%clk 0:02:04]} 27. Bd2 {[%clk 0:01:23]}  Nb3 {[%clk 0:02:01]} 28. Rxa7 {[%clk 0:01:19]}  Nxc1 {[%clk 0:01:50]} 29. Rxb7 {[%clk 0:01:18]}  Qxb7 {[%clk 0:01:51]} 30. Bxc1 {[%clk 0:01:18]}  Rc8 {[%clk 0:01:47]} 31. Be3 {[%clk 0:01:18]}  Qb4 {[%clk 0:01:41]} 32. c5 {[%clk 0:01:16]}  dxc5 {[%clk 0:01:41]} 33. Kf3 {[%clk 0:01:15]}  c4 {[%clk 0:01:39]} 34. Qa2 {[%clk 0:01:12]}  c3 {[%clk 0:01:25]} 35. Qa6 {[%clk 0:01:11]}  Qc4 {[%clk 0:01:25]} 36. Qb6 {[%clk 0:00:52]}  c2 {[%clk 0:01:25]} 37. d6 {[%clk 0:00:51]}  c1=Q {[%clk 0:01:20]} 38. Bxc1 {[%clk 0:00:51]}  Qxc1 {[%clk 0:01:21]} 39. d7 {[%clk 0:00:51]}  Qd1+ {[%clk 0:01:22]} 0-1


[Site "https://www.chess.com"]

[Event "Titled Tuesday Blitz August 23 Early 2022"]
[White "Moroni, Luca Jr"]
[Black "Leiva, Gianmarco"]
[WhiteFideId "865834"]
[BlackFideId "3804399"]
[WhiteElo "2573"]
[BlackElo "2323"]
[Result "1-0"]
[Round "03"]
[TimeControl "180+1"]
[Date "2022.08.23"]
[WhiteClock "0:00:18"]
[BlackClock "0:00:04"]

1. d4 {[%clk 0:03:00]}  Nf6 {[%clk 0:03:00]} 2. c4 {[%clk 0:03:00]}  e6 {[%clk 0:03:00]} 3. Nc3 {[%clk 0:03:00]}  Bb4 {[%clk 0:02:59]} 4. Nf3 {[%clk 0:03:01]}  O-O {[%clk 0:02:59]} 5. e3 {[%clk 0:02:57]}  c5 {[%clk 0:02:56]} 6. Bd3 {[%clk 0:02:47]}  Nc6 {[%clk 0:02:55]} 7. O-O {[%clk 0:02:46]}  Bxc3 {[%clk 0:02:46]} 8. bxc3 {[%clk 0:02:45]}  d6 {[%clk 0:02:47]} 9. e4 {[%clk 0:02:41]}  e5 {[%clk 0:02:33]} 10. d5 {[%clk 0:02:40]}  Ne7 {[%clk 0:02:33]} 11. Ne1 {[%clk 0:02:27]}  Ng6 {[%clk 0:02:32]} 12. f3 {[%clk 0:02:26]}  Ne8 {[%clk 0:02:04]} 13. Qc2 {[%clk 0:02:19]}  Nf4 {[%clk 0:01:47]} 14. g3 {[%clk 0:02:17]}  Nxd3 {[%clk 0:01:47]} 15. Nxd3 {[%clk 0:02:14]}  Bh3 {[%clk 0:01:45]} 16. Re1 {[%clk 0:02:11]}  Bd7 {[%clk 0:01:33]} 17. f4 {[%clk 0:02:05]}  exf4 {[%clk 0:01:30]} 18. Bxf4 {[%clk 0:02:06]}  g5 {[%clk 0:01:30]} 19. Be3 {[%clk 0:01:53]}  f6 {[%clk 0:01:30]} 20. Re2 {[%clk 0:01:38]}  Qe7 {[%clk 0:01:27]} 21. Rf1 {[%clk 0:01:36]}  Bh3 {[%clk 0:00:55]} 22. Rff2 {[%clk 0:01:31]}  Nc7 {[%clk 0:00:49]} 23. Bc1 {[%clk 0:01:22]}  Rf7 {[%clk 0:00:47]} 24. Re1 {[%clk 0:01:19]}  Re8 {[%clk 0:00:43]} 25. Qd1 {[%clk 0:01:11]}  Qd7 {[%clk 0:00:27]} 26. e5 {[%clk 0:01:06]}  fxe5 {[%clk 0:00:25]} 27. Bxg5 {[%clk 0:01:05]}  Ref8 {[%clk 0:00:24]} 28. Bh6 {[%clk 0:00:59]}  Bg4 {[%clk 0:00:21]} 29. Qd2 {[%clk 0:00:54]}  Re8 {[%clk 0:00:10]} 30. Qg5+ {[%clk 0:00:47]}  Kh8 {[%clk 0:00:11]} 31. Rxf7 {[%clk 0:00:46]}  Qxf7 {[%clk 0:00:11]} 32. Qxg4 {[%clk 0:00:46]}  Rg8 {[%clk 0:00:06]} 33. Qe2 {[%clk 0:00:46]}  Qg6 {[%clk 0:00:04]} 34. Bc1 {[%clk 0:00:45]}  h5 {[%clk 0:00:03]} 35. Qe4 {[%clk 0:00:44]}  Qxe4 {[%clk 0:00:03]} 36. Rxe4 {[%clk 0:00:45]}  Kh7 {[%clk 0:00:03]} 37. Kg2 {[%clk 0:00:43]}  Na8 {[%clk 0:00:03]} 38. h4 {[%clk 0:00:39]}  Nb6 {[%clk 0:00:04]} 39. Bg5 {[%clk 0:00:38]}  Kg6 {[%clk 0:00:04]} 40. Nb2 {[%clk 0:00:33]}  Rg7 {[%clk 0:00:04]} 41. Re2 {[%clk 0:00:31]}  Nd7 {[%clk 0:00:01]} 42. Rf2 {[%clk 0:00:30]}  Rf7 {[%clk 0:00:02]} 43. Rxf7 {[%clk 0:00:29]}  Kxf7 {[%clk 0:00:03]} 44. Kf3 {[%clk 0:00:30]}  a6 {[%clk 0:00:03]} 45. g4 {[%clk 0:00:30]}  b5 {[%clk 0:00:04]} 46. cxb5 {[%clk 0:00:28]}  axb5 {[%clk 0:00:04]} 47. gxh5 {[%clk 0:00:27]}  Nb6 {[%clk 0:00:05]} 48. Ke4 {[%clk 0:00:27]}  c4 {[%clk 0:00:04]} 49. h6 {[%clk 0:00:25]}  Nd7 {[%clk 0:00:04]} 50. Kf5 {[%clk 0:00:22]}  Nc5 {[%clk 0:00:04]} 51. Bf6 {[%clk 0:00:19]}  b4 {[%clk 0:00:02]} 52. h7 {[%clk 0:00:16]}  bxc3 {[%clk 0:00:03]} 53. h8=Q {[%clk 0:00:16]}  cxb2 {[%clk 0:00:03]} 54. Qg7+ {[%clk 0:00:17]}  Ke8 {[%clk 0:00:04]} 55. Qe7# {[%clk 0:00:18]} 1-0


[Site "https://www.chess.com"]